Portfolio,Expense Area,Cost Centre,Expense Type,Account Code,Amount,Supplier Name,SupplierId,Pay Date,Transaction No.,,VAT No.,Co. Reg. No.,VAT No.,Voucher Type,�,Trans Date
Environment and Public Realm,Grounds Maintenance,PKS20,Materials,303,105.5,Arco Limited,100015,26/04/2018,10258881,TC,166911546,,166911546,PI,558.84,16/04/2018
Environment and Public Realm,Grounds Maintenance,PKS20,Personal Protective Equipment,306,171.08,Arco Limited,100015,26/04/2018,10258881,TC,166911546,,166911546,PI,558.84,16/04/2018
Environment and Public Realm,Grounds Maintenance,PKS20,Personal Protective Clothing,340,189.12,Arco Limited,100015,26/04/2018,10258881,TC,166911546,,166911546,PI,558.84,16/04/2018
Environment and Public Realm,Regulatory Services,REG00,Subscriptions,421,2132,Ricardo Energy T/A Aea Technology plc,100050,12/04/2018,10258634,TC,130,,130,PI,2558.4,09/04/2018
Capital Housing Revenue Account,Fire Risk Prevention Works,HCE18,Capital Contract Payments,5000,5884.26,AWM Electrical Contractors Ltd,100051,12/04/2018,10258492,CS,661675907,7430696,661675907,PN,7061.11,05/04/2018
Housing Revenue Account,Repairs and Maintenance - Void works,UMR09,R&M External Contractors,100,1666.41,AWM Electrical Contractors Ltd,100051,12/04/2018,10258493,CS,661675907,7430696,661675907,PN,1999.69,05/04/2018
Housing Revenue Account,Electrical maintenance,UMR10,R&M External Contractors,100,1240.63,AWM Electrical Contractors Ltd,100051,12/04/2018,10258494,CS,661675907,7430696,661675907,PN,2540.09,05/04/2018
Housing Revenue Account,Miscellaneous Unplanned Maintenance and Repair,UMR17,R&M External Contractors,100,876.12,AWM Electrical Contractors Ltd,100051,12/04/2018,10258494,CS,661675907,7430696,661675907,PN,2540.09,05/04/2018
Housing Revenue Account,Repairs and Maintenance - Void works,UMR09,R&M External Contractors,100,742.9,AWM Electrical Contractors Ltd,100051,12/04/2018,10258495,CS,661675907,7430696,661675907,PN,891.48,05/04/2018
Housing Revenue Account,Repairs and Maintenance - Void works,UMR09,R&M External Contractors,100,2207.81,AWM Electrical Contractors Ltd,100051,12/04/2018,10258496,CS,661675907,7430696,661675907,PN,2649.37,05/04/2018
Housing Revenue Account,Gas Heating Systems,UMR01,R&M External Contractors,100,17.02,AWM Electrical Contractors Ltd,100051,12/04/2018,10258653,CS,661675907,7430696,661675907,PN,5545.52,10/04/2018
Housing Revenue Account,Electrical maintenance,UMR10,R&M External Contractors,100,4212.71,AWM Electrical Contractors Ltd,100051,12/04/2018,10258653,CS,661675907,7430696,661675907,PN,5545.52,10/04/2018
Housing Revenue Account,Miscellaneous Unplanned Maintenance and Repair,UMR17,R&M External Contractors,100,391.54,AWM Electrical Contractors Ltd,100051,12/04/2018,10258653,CS,661675907,7430696,661675907,PN,5545.52,10/04/2018
Housing Revenue Account,Electrical maintenance,UMR10,R&M External Contractors,100,1793.56,AWM Electrical Contractors Ltd,100051,26/04/2018,10258894,CS,661675907,7430696,661675907,PN,2298.49,16/04/2018
Housing Revenue Account,Miscellaneous Unplanned Maintenance and Repair,UMR17,R&M External Contractors,100,121.85,AWM Electrical Contractors Ltd,100051,26/04/2018,10258894,CS,661675907,7430696,661675907,PN,2298.49,16/04/2018
Housing Revenue Account,Repairs and Maintenance - Void works,UMR09,R&M External Contractors,100,481.65,AWM Electrical Contractors Ltd,100051,19/04/2018,10258895,CS,661675907,7430696,661675907,PN,577.98,16/04/2018
Housing Revenue Account,Repairs and Maintenance - Void works,UMR09,R&M External Contractors,100,649.19,AWM Electrical Contractors Ltd,100051,19/04/2018,10258896,CS,661675907,7430696,661675907,PN,779.02,16/04/2018
Housing Revenue Account,Repairs and Maintenance - Void works,UMR09,R&M External Contractors,100,720.8,AWM Electrical Contractors Ltd,100051,19/04/2018,10258897,CS,661675907,7430696,661675907,PN,864.96,16/04/2018
Housing Revenue Account,Electrical maintenance,UMR10,R&M External Contractors,100,1166.17,AWM Electrical Contractors Ltd,100051,26/04/2018,10258898,CS,661675907,7430696,661675907,PN,1446.25,16/04/2018
Housing Revenue Account,Miscellaneous Unplanned Maintenance and Repair,UMR17,R&M External Contractors,100,39.03,AWM Electrical Contractors Ltd,100051,26/04/2018,10258898,CS,661675907,7430696,661675907,PN,1446.25,16/04/2018
Housing Revenue Account,Repairs and Maintenance - Void works,UMR09,R&M External Contractors,100,119.75,AWM Electrical Contractors Ltd,100051,26/04/2018,10258899,CS,661675907,7430696,661675907,PN,1111.21,16/04/2018
Housing Revenue Account,Electrical maintenance,UMR10,R&M External Contractors,100,806.26,AWM Electrical Contractors Ltd,100051,26/04/2018,10258899,CS,661675907,7430696,661675907,PN,1111.21,16/04/2018
Housing Revenue Account,Electrical maintenance,UMR10,R&M External Contractors,100,2572.1,AWM Electrical Contractors Ltd,100051,26/04/2018,10259019,CS,661675907,7430696,661675907,PN,3148.02,19/04/2018
Housing Revenue Account,Miscellaneous Unplanned Maintenance and Repair,UMR17,R&M External Contractors,100,51.25,AWM Electrical Contractors Ltd,100051,26/04/2018,10259019,CS,661675907,7430696,661675907,PN,3148.02,19/04/2018
Housing Revenue Account,Electrical maintenance,UMR10,R&M External Contractors,100,840.29,AWM Electrical Contractors Ltd,100051,26/04/2018,10259109,CS,661675907,7430696,661675907,PN,1108.14,23/04/2018
Housing Revenue Account,Multi-Storey Flats,MSF00,Other Miscellaneous Expenses,444,83.16,AWM Electrical Contractors Ltd,100051,26/04/2018,10259109,CS,661675907,7430696,661675907,PN,1108.14,23/04/2018
Housing Revenue Account,Repairs and Maintenance - Void works,UMR09,R&M External Contractors,100,1613,AWM Electrical Contractors Ltd,100051,26/04/2018,10259110,CS,661675907,7430696,661675907,PN,1935.6,23/04/2018
Housing Revenue Account,Gas Heating Systems,UMR01,R&M External Contractors,100,89.82,AWM Electrical Contractors Ltd,100051,26/04/2018,10259217,CS,661675907,7430696,661675907,PN,1548.48,25/04/2018
Housing Revenue Account,Electrical maintenance,UMR10,R&M External Contractors,100,964.09,AWM Electrical Contractors Ltd,100051,26/04/2018,10259217,CS,661675907,7430696,661675907,PN,1548.48,25/04/2018
Housing Revenue Account,Multi-Storey Flats,MSF00,Other Miscellaneous Expenses,444,236.5,AWM Electrical Contractors Ltd,100051,26/04/2018,10259217,CS,661675907,7430696,661675907,PN,1548.48,25/04/2018
Environment and Public Realm,Domestic Waste Collection/Recycling,REF00,Subscriptions,421,2268,APSE,100052,19/04/2018,10258671,TC,519286915,,519 2869 15,PN,2721.6,10/04/2018
Capital Housing Revenue Account,Kitchen Modifications,HIK10,Capital Contract Payments,5000,7550.58,A C E Carpentry & Joinery Contractors Ltd,100085,26/04/2018,10258892,CS,729422428,4120783,729422428,PN,9060.7,16/04/2018
Capital Housing Revenue Account,Kitchen Modifications,HIK10,Capital Contract Payments,5000,7550.58,A C E Carpentry & Joinery Contractors Ltd,100085,26/04/2018,10259042,CS,729422428,4120783,729422428,PN,9060.7,19/04/2018
Housing Revenue Account,Miscellaneous Unplanned Maintenance and Repair,UMR17,R&M External Contractors,100,152.45,A C E Carpentry & Joinery Contractors Ltd,100085,26/04/2018,10259234,CS,729422428,4120783,729422428,PN,9243.64,25/04/2018
Capital Housing Revenue Account,Kitchen Modifications,HIK10,Capital Contract Payments,5000,7550.58,A C E Carpentry & Joinery Contractors Ltd,100085,26/04/2018,10259234,CS,729422428,4120783,729422428,PN,9243.64,25/04/2018
Communities and Homes,Central Business Support Services,CSS15,Subscriptions,421,1345.5,LGC T/A Emap Communications Ltd,100093,05/04/2018,10258342,TC,486400442,,486400442,PI,1345.5,29/03/2018
Environment and Public Realm,Highways,HIG20,Materials,303,1024.95,Aggregate Industries UK Limited,100134,19/04/2018,10258874,TC,533260571,,533260571,PI,1229.94,16/04/2018
Environment and Public Realm,Highways,HIG20,Materials,303,439.64,Aggregate Industries UK Limited,100134,19/04/2018,10258884,TC,533260571,,533260571,PI,527.57,16/04/2018
Environment and Public Realm,Highways,HIG20,Materials,303,704.98,Aggregate Industries UK Limited,100134,26/04/2018,10259099,TC,533260571,,533260571,PI,845.98,23/04/2018
Corporate Resources,Council Tax and NNDR Collection,CTX01,External Legal Costs,741,537.84,Bristow & Sutor,100159,05/04/2018,10258136,TC,294694111,,294694111,PN,875.41,26/03/2018
Corporate Resources,Council Tax and NNDR Collection,CTX01,External Legal Costs,741,130.57,Bristow & Sutor,100159,12/04/2018,10258575,TC,294694111,,294694111,PN,601.63,09/04/2018
Corporate Resources,Council Tax and NNDR Collection,CTX01,External Legal Costs,741,535,Bristow & Sutor,100159,26/04/2018,10259071,TC,294694111,,294694111,PN,1210.48,20/04/2018
Housing Revenue Account,Control Centre (HRA),CCE00,Telephone Expenses,371,37.89,British Telecommunications Plc,100161,19/04/2018,10258759,TC,245719348,,245719348,PN,1788.92,12/04/2018
Communities and Homes,Broadband & internet,TEL01,Telephone Expenses,371,37.89,British Telecommunications Plc,100161,19/04/2018,10258759,TC,245719348,,245719348,PN,1788.92,12/04/2018
Communities and Homes,"Landlines, faxes, alarms & misc.",TEL02,Telephone Expenses,371,1414.99,British Telecommunications Plc,100161,19/04/2018,10258759,TC,245719348,,245719348,PN,1788.92,12/04/2018
Communities and Homes,Woodside Park,TVR00,R&M External Contractors,100,3851.72,Bt Redcare,100221,19/04/2018,10258681,TC,GB245719348,,GB245719348,PN,4622.06,11/04/2018
Communities and Homes,ITC & Support Services,CIS10,Photocopying,354,1307.84,Canon (UK) Limited,100514,12/04/2018,10258394,TC,523797128,1264300,523797128,PN,1569.41,03/04/2018
Communities and Homes,ITC & Support Services,CIS10,Photocopying,354,5129.51,Canon (UK) Limited,100514,12/04/2018,10258395,TC,523797128,1264300,523797128,PN,6155.41,03/04/2018
Communities and Homes,ITC & Support Services,CIS10,Photocopying,354,3613.3,Canon (UK) Limited,100514,12/04/2018,10258396,TC,523797128,1264300,523797128,PN,4335.96,03/04/2018
Communities and Homes,ITC & Support Services,CIS10,Photocopying,354,429.27,Canon (UK) Limited,100514,12/04/2018,10258679,TC,523797128,1264300,523797128,PN,515.12,11/04/2018
Environment and Public Realm,Domestic Waste Collection/Recycling,REF00,Vehicle Repair and Maintenance,200,1065.27,Dennis Eagle Ltd,100559,19/04/2018,10258500,TC,272496827,,272 4968 27,PN,1278.32,05/04/2018
Environment and Public Realm,Domestic Waste Collection/Recycling,REF00,Vehicle Repair and Maintenance,200,511.32,Dennis Eagle Ltd,100559,19/04/2018,10258618,TC,272496827,,272 4968 27,PN,613.58,09/04/2018
Environment and Public Realm,Crematorium,CRM00,R&M External Contractors,100,419,Dunchurch Services (Rugby) Ltd,100565,26/04/2018,10259132,CS,623535748,2693688,623535748,PN,502.8,23/04/2018
Housing Revenue Account,Albert Square AP,AGP20,Gas,131,1351.51,ESPO,100641,19/04/2018,10258923,TC,705180561,,705180561,PN,1621.81,17/04/2018
Housing Revenue Account,Lesley Souter House AP,AGP16,Gas,131,1008.64,ESPO,100641,19/04/2018,10258924,TC,705180561,,705180561,PN,1210.37,17/04/2018
Housing Revenue Account,Tanser Court AP,AGP17,Gas,131,1154.01,ESPO,100641,19/04/2018,10258925,TC,705180561,,705180561,PN,1384.81,17/04/2018
Environment and Public Realm,Crematorium,CRM00,Gas,131,1512.35,ESPO,100641,19/04/2018,10258945,TC,705180561,,705180561,PN,1814.82,17/04/2018
Capital Housing Revenue Account,Housing Window Replacement,HWR00,Capital Contract Payments,5000,2420.1,Nationwide Windows Ltd,100808,26/04/2018,10258906,CS,792405224,2025613,792405224,PN,2904.12,16/04/2018
Environment and Public Realm,Street Cleansing General,STC00,Vehicle Repair and Maintenance,200,499.25,Ford & Slater,100817,19/04/2018,10258466,TC,565760807,,565 7608 07,PN,599.1,04/04/2018
Environment and Public Realm,WSU Depot,WDP00,Subscriptions,421,772,Freight Transport Association,100830,12/04/2018,10257952,TC,217853550,391957,217853550,PN,926.4,20/03/2018
Growth and Investment,Planning General/Income,PLN00,Consultancy Costs,740,13748.05,Gerald Eve,100929,05/04/2018,10258361,TC,974992941,,974992941,PN,16497.66,03/04/2018
Corporate Resources,Financial Services,RES10,Asset Management Expenses,448,800,Godfrey-Payton Chartered Surveyors,100937,26/04/2018,10258700,TC,272440179,,272440179,PI,960,11/04/2018
Growth and Investment,Visitor Centre,VSC00,Purchases for Resale,305,465.3,Grays of Cambridge (Intl) Limited,100949,12/04/2018,10258555,TC,213436495,,213436495,PN,558.36,06/04/2018
Corporate Resources,Human Resources Centralised Services,RES31,Recruitment Expenses,12,985,TMP (UK) LTD,100972,12/04/2018,10258126,TC,872904502,,872904502,PI,1182,26/03/2018
Corporate Resources,Human Resources Centralised Services,RES31,Recruitment Expenses,12,526.24,TMP (UK) LTD,100972,12/04/2018,10258127,TC,872904502,,872904502,PI,631.49,26/03/2018
Corporate Resources,Human Resources Centralised Services,RES31,Recruitment Expenses,12,1420,TMP (UK) LTD,100972,26/04/2018,10258888,TC,872904502,,872904502,PI,1704,16/04/2018
Housing Revenue Account,Control Centre (HRA),CCE00,New Equipment,300,468,Hillarys Blinds Ltd,101029,05/04/2018,10258359,TC,416168262,,416168262,PN,561.6,03/04/2018
Environment and Public Realm,Street Cleansing General,STC00,Vehicle Repair and Maintenance,200,1550,H.L. Smith (Transmissions) Ltd,101096,19/04/2018,10258544,TC,100786885,,100 7868 85,PN,1860,05/04/2018
Capital Corporate Resources,Corporate Property Enhancements,CPE00,Capital Contract Payments,5000,18582.16,IE Office Equipment Ltd,101114,05/04/2018,10258270,CS,661544339,,661544339,PN,22298.59,28/03/2018
Corporate Resources,Corporate Property R&M,CPA01,New Equipment,300,445,IE Office Equipment Ltd,101114,05/04/2018,10258338,CS,661544339,,661544339,PI,534,29/03/2018
Executive Director Office,"Communications, Consultation and Information Team",BTR20,Other Agencies,734,890,Improvement & Development Agency,101151,19/04/2018,10259006,TC,540385554,3675577,540385554,PI,1068,18/04/2018
Housing Revenue Account,Unplanned Maintenance and Repair,UMR00,External Contractor & Operator,742,727.53,Clews Recycling Limited,101213,05/04/2018,10258421,TC,747316619,,747316619,PN,873.04,03/04/2018
Growth and Investment,Visitor Centre,VSC00,Events Tickets - Standard Rated,1404,622.9,National Express Ltd,101392,05/04/2018,10258405,TC,487038714,,487038714,PN,622.9,03/04/2018
Housing Revenue Account,Sheltered Housing,AGP00,Telephone Expenses,371,235,EE Ltd t/a Orange Personal Communications,101404,19/04/2018,10258851,TC,529221751,,529221751,PN,5249.54,16/04/2018
Environment and Public Realm,Crematorium,CRM00,Telephone Expenses,371,11.75,EE Ltd t/a Orange Personal Communications,101404,19/04/2018,10258851,TC,529221751,,529221751,PN,5249.54,16/04/2018
Housing Revenue Account,Supervision and Management General,MAN00,Telephone Expenses,371,178.19,EE Ltd t/a Orange Personal Communications,101404,19/04/2018,10258851,TC,529221751,,529221751,PN,5249.54,16/04/2018
Housing Revenue Account,Property Maintenance,MAN23,Telephone Expenses,371,144.6,EE Ltd t/a Orange Personal Communications,101404,19/04/2018,10258851,TC,529221751,,529221751,PN,5249.54,16/04/2018
Housing Revenue Account,Multi-Storey Flats,MSF00,Telephone Expenses,371,11.75,EE Ltd t/a Orange Personal Communications,101404,19/04/2018,10258851,TC,529221751,,529221751,PN,5249.54,16/04/2018
Communities and Homes,Mobile telephones,TEL03,Telephone Expenses,371,2902.85,EE Ltd t/a Orange Personal Communications,101404,19/04/2018,10258851,TC,529221751,,529221751,PN,5249.54,16/04/2018
Housing Revenue Account,Unplanned Maintenance and Repair,UMR00,Telephone Expenses,371,883.39,EE Ltd t/a Orange Personal Communications,101404,19/04/2018,10258851,TC,529221751,,529221751,PN,5249.54,16/04/2018
Housing Revenue Account,Repairs and Maintenance - Void works,UMR09,Telephone Expenses,371,11.75,EE Ltd t/a Orange Personal Communications,101404,19/04/2018,10258851,TC,529221751,,529221751,PN,5249.54,16/04/2018
Environment and Public Realm,Parks,PKS00,R&M External Contractors,100,512.52,PJT Pumping Services,101438,26/04/2018,10259018,TC,618143943,,618143943,PN,615.02,19/04/2018
Environment and Public Realm,Sewage Disposal Plant,SDP00,R&M External Contractors,100,520.28,PJT Pumping Services,101438,26/04/2018,10259044,TC,618143943,,618143943,PN,624.34,19/04/2018
Capital Housing Revenue Account,Kitchen Modifications,HIK10,Capital Contract Payments,5000,19880,Reeds Plumbing & Heating Contractors Ltd,101504,26/04/2018,10258910,CS,418584732,4468782,418 5847 32,PN,23856,16/04/2018
Capital Housing Revenue Account,Disabled Adaptations,HCR01,Capital Contract Payments,5000,5170,Reeds Plumbing & Heating Contractors Ltd,101504,26/04/2018,10259043,CS,418584732,4468782,418 5847 32,PN,11444.4,19/04/2018
Capital Housing Revenue Account,Kitchen Modifications,HIK10,Capital Contract Payments,5000,752,Reeds Plumbing & Heating Contractors Ltd,101504,26/04/2018,10259043,CS,418584732,4468782,418 5847 32,PN,11444.4,19/04/2018
Capital Housing Revenue Account,Bathroom Modifications,HIS01,Capital Contract Payments,5000,3615,Reeds Plumbing & Heating Contractors Ltd,101504,26/04/2018,10259043,CS,418584732,4468782,418 5847 32,PN,11444.4,19/04/2018
Growth and Investment,The Benn Hall,BHL00,Rates,141,10920,Rugby Borough Council,101516,05/04/2018,10258286,NT,,,,PN,10920,29/03/2018
Environment and Public Realm,Cemeteries General,CEM00,Rates,141,2094.95,Rugby Borough Council,101516,05/04/2018,10258287,NT,,,,PN,2094.95,29/03/2018
Environment and Public Realm,Cemeteries General,CEM00,Rates,141,2295.84,Rugby Borough Council,101516,05/04/2018,10258288,NT,,,,PN,2295.84,29/03/2018
Environment and Public Realm,Cemeteries General,CEM00,Rates,141,1779.27,Rugby Borough Council,101516,05/04/2018,10258289,NT,,,,PN,1779.27,29/03/2018
Environment and Public Realm,Cemeteries General,CEM00,Rates,141,1219.66,Rugby Borough Council,101516,05/04/2018,10258290,NT,,,,PN,1219.66,29/03/2018
Environment and Public Realm,WSU Depot,WDP00,Rates,141,44863,Rugby Borough Council,101516,05/04/2018,10258291,NT,,,,PN,44863,29/03/2018
Environment and Public Realm,Town Centre Public Conveniences,PCS00,Rates,141,3792,Rugby Borough Council,101516,05/04/2018,10258292,NT,,,,PN,3792,29/03/2018
Growth and Investment,Art Gallery and Museum,AGM00,Rates,141,133110,Rugby Borough Council,101516,05/04/2018,10258293,NT,,,,PN,133110,29/03/2018
Corporate Resources,Town Hall,OFF00,Rates,141,119870.72,Rugby Borough Council,101516,05/04/2018,10258294,NT,,,,PN,119870.72,29/03/2018
Environment and Public Realm,Parks,PKS00,Rates,141,6096,Rugby Borough Council,101516,05/04/2018,10258295,NT,,,,PN,6096,29/03/2018
Environment and Public Realm,Car Parks General,CPK01,Rates,141,3788.12,Rugby Borough Council,101516,05/04/2018,10258296,NT,,,,PN,3788.12,29/03/2018
Environment and Public Realm,Parks,PKS00,Rates,141,6887.5,Rugby Borough Council,101516,05/04/2018,10258298,NT,,,,PN,6887.5,29/03/2018
Environment and Public Realm,Crematorium,CRM00,Rates,141,16920,Rugby Borough Council,101516,05/04/2018,10258299,NT,,,,PN,16920,29/03/2018
Communities and Homes,Woodside Park,TVR00,Rates,141,24240,Rugby Borough Council,101516,12/04/2018,10258300,NT,,,,PN,24240,29/03/2018
Environment and Public Realm,Car Parks General,CPK01,Rates,141,1104,Rugby Borough Council,101516,05/04/2018,10258301,NT,,,,PN,1104,29/03/2018
Environment and Public Realm,Car Parks General,CPK01,Rates,141,5567.4,Rugby Borough Council,101516,05/04/2018,10258302,NT,,,,PN,5567.4,29/03/2018
Environment and Public Realm,Car Parks General,CPK01,Rates,141,7897.89,Rugby Borough Council,101516,05/04/2018,10258303,NT,,,,PN,7897.89,29/03/2018
Environment and Public Realm,Car Parks General,CPK01,Rates,141,20033.25,Rugby Borough Council,101516,05/04/2018,10258304,NT,,,,PN,20033.25,29/03/2018
Environment and Public Realm,Car Parks General,CPK01,Rates,141,20520,Rugby Borough Council,101516,05/04/2018,10258305,NT,,,,PN,20520,29/03/2018
Environment and Public Realm,Car Parks General,CPK01,Rates,141,4503.47,Rugby Borough Council,101516,05/04/2018,10258306,NT,,,,PN,4503.47,29/03/2018
Environment and Public Realm,Car Parks General,CPK01,Rates,141,17171.86,Rugby Borough Council,101516,05/04/2018,10258307,NT,,,,PN,17171.86,29/03/2018
Environment and Public Realm,Car Parks General,CPK01,Rates,141,6889.65,Rugby Borough Council,101516,05/04/2018,10258308,NT,,,,PN,6889.65,29/03/2018
Housing Revenue Account,Supervision and Management General,MAN00,Council Tax,142,1186.69,Rugby Borough Council,101516,12/04/2018,10258756,NT,,,,PN,1186.69,12/04/2018
Housing Revenue Account,Supervision and Management General,MAN00,Council Tax,142,1186.69,Rugby Borough Council,101516,12/04/2018,10258757,NT,,,,PN,1186.69,12/04/2018
Housing Revenue Account,Supervision and Management General,MAN00,Council Tax,142,1186.69,Rugby Borough Council,101516,12/04/2018,10258758,NT,,,,PN,1186.69,12/04/2018
Housing Revenue Account,Supervision and Management General,MAN00,Council Tax,142,1384.47,Rugby Borough Council,101516,19/04/2018,10258778,NT,,,,PN,1384.47,12/04/2018
Housing Revenue Account,Supervision and Management General,MAN00,Council Tax,142,1186.69,Rugby Borough Council,101516,19/04/2018,10258779,NT,,,,PN,1186.69,12/04/2018
Housing Revenue Account,Supervision and Management General,MAN00,Council Tax,142,1186.69,Rugby Borough Council,101516,19/04/2018,10258780,NT,,,,PN,1186.69,12/04/2018
Housing Revenue Account,Supervision and Management General,MAN00,Council Tax,142,1186.69,Rugby Borough Council,101516,19/04/2018,10258781,NT,,,,PN,1186.69,12/04/2018
Housing Revenue Account,Supervision and Management General,MAN00,Council Tax,142,1186.69,Rugby Borough Council,101516,19/04/2018,10258782,NT,,,,PN,1186.69,12/04/2018
Housing Revenue Account,Supervision and Management General,MAN00,Council Tax,142,1186.69,Rugby Borough Council,101516,19/04/2018,10258783,NT,,,,PN,1186.69,12/04/2018
Housing Revenue Account,Supervision and Management General,MAN00,Council Tax,142,1186.69,Rugby Borough Council,101516,19/04/2018,10258784,NT,,,,PN,1186.69,12/04/2018
Housing Revenue Account,Supervision and Management General,MAN00,Council Tax,142,1186.69,Rugby Borough Council,101516,19/04/2018,10258785,NT,,,,PN,1186.69,12/04/2018
Housing Revenue Account,Supervision and Management General,MAN00,Council Tax,142,1186.69,Rugby Borough Council,101516,19/04/2018,10258786,NT,,,,PN,1186.69,12/04/2018
Housing Revenue Account,Supervision and Management General,MAN00,Council Tax,142,1186.69,Rugby Borough Council,101516,19/04/2018,10258787,NT,,,,PN,1186.69,12/04/2018
Housing Revenue Account,Supervision and Management General,MAN00,Council Tax,142,1186.69,Rugby Borough Council,101516,19/04/2018,10258788,NT,,,,PN,1186.69,12/04/2018
Housing Revenue Account,Supervision and Management General,MAN00,Council Tax,142,1186.69,Rugby Borough Council,101516,19/04/2018,10258789,NT,,,,PN,1186.69,12/04/2018
Housing Revenue Account,Supervision and Management General,MAN00,Council Tax,142,1186.69,Rugby Borough Council,101516,19/04/2018,10258790,NT,,,,PN,1186.69,12/04/2018
Housing Revenue Account,Supervision and Management General,MAN00,Council Tax,142,1186.69,Rugby Borough Council,101516,19/04/2018,10258791,NT,,,,PN,1186.69,12/04/2018
Housing Revenue Account,Supervision and Management General,MAN00,Council Tax,142,1186.69,Rugby Borough Council,101516,19/04/2018,10258792,NT,,,,PN,1186.69,12/04/2018
Housing Revenue Account,Supervision and Management General,MAN00,Council Tax,142,1186.69,Rugby Borough Council,101516,19/04/2018,10258793,NT,,,,PN,1186.69,12/04/2018
Housing Revenue Account,Supervision and Management General,MAN00,Council Tax,142,1384.47,Rugby Borough Council,101516,19/04/2018,10258794,NT,,,,PN,1384.47,12/04/2018
Housing Revenue Account,Supervision and Management General,MAN00,Council Tax,142,1186.69,Rugby Borough Council,101516,19/04/2018,10258795,NT,,,,PN,1186.69,12/04/2018
Housing Revenue Account,Supervision and Management General,MAN00,Council Tax,142,1186.69,Rugby Borough Council,101516,19/04/2018,10258796,NT,,,,PN,1186.69,12/04/2018
Housing Revenue Account,Supervision and Management General,MAN00,Council Tax,142,1186.69,Rugby Borough Council,101516,19/04/2018,10258797,NT,,,,PN,1186.69,12/04/2018
Housing Revenue Account,Supervision and Management General,MAN00,Council Tax,142,1186.69,Rugby Borough Council,101516,19/04/2018,10258798,NT,,,,PN,1186.69,12/04/2018
Housing Revenue Account,Supervision and Management General,MAN00,Council Tax,142,1186.69,Rugby Borough Council,101516,19/04/2018,10258799,NT,,,,PN,1186.69,12/04/2018
Housing Revenue Account,Supervision and Management General,MAN00,Council Tax,142,1186.69,Rugby Borough Council,101516,19/04/2018,10258800,NT,,,,PN,1186.69,12/04/2018
Communities and Homes,Ashwood Court Supported Flats,MSF01,Council Tax,142,1186.69,Rugby Borough Council,101516,19/04/2018,10258815,NT,,,,PN,1186.69,12/04/2018
Communities and Homes,Ashwood Court Supported Flats,MSF01,Council Tax,142,1186.69,Rugby Borough Council,101516,19/04/2018,10258816,NT,,,,PN,1186.69,12/04/2018
Communities and Homes,Ashwood Court Supported Flats,MSF01,Council Tax,142,1186.69,Rugby Borough Council,101516,19/04/2018,10258817,NT,,,,PN,1186.69,12/04/2018
Communities and Homes,Ashwood Court Supported Flats,MSF01,Council Tax,142,1186.69,Rugby Borough Council,101516,19/04/2018,10258818,NT,,,,PN,1186.69,12/04/2018
Communities and Homes,Ashwood Court Supported Flats,MSF01,Council Tax,142,1186.69,Rugby Borough Council,101516,19/04/2018,10258819,NT,,,,PN,1186.69,12/04/2018
Communities and Homes,Ashwood Court Supported Flats,MSF01,Council Tax,142,1186.69,Rugby Borough Council,101516,19/04/2018,10258820,NT,,,,PN,1186.69,12/04/2018
Communities and Homes,Ashwood Court Supported Flats,MSF01,Council Tax,142,1186.69,Rugby Borough Council,101516,19/04/2018,10258821,NT,,,,PN,1186.69,12/04/2018
Communities and Homes,Ashwood Court Supported Flats,MSF01,Council Tax,142,1186.69,Rugby Borough Council,101516,19/04/2018,10258822,NT,,,,PN,1186.69,12/04/2018
Communities and Homes,Ashwood Court Supported Flats,MSF01,Council Tax,142,1186.69,Rugby Borough Council,101516,19/04/2018,10258823,NT,,,,PN,1186.69,12/04/2018
Communities and Homes,Ashwood Court Supported Flats,MSF01,Council Tax,142,1186.69,Rugby Borough Council,101516,19/04/2018,10258824,NT,,,,PN,1186.69,12/04/2018
Communities and Homes,Ashwood Court Supported Flats,MSF01,Council Tax,142,1186.69,Rugby Borough Council,101516,19/04/2018,10258825,NT,,,,PN,1186.69,12/04/2018
Communities and Homes,Ashwood Court Supported Flats,MSF01,Council Tax,142,1186.69,Rugby Borough Council,101516,19/04/2018,10258826,NT,,,,PN,1186.69,12/04/2018
Environment and Public Realm,Trade Waste Collection,WWC01,Vehicle Repair and Maintenance,200,565,Rugby Mobile Windscreens,101520,05/04/2018,10258369,TC,307407185,,307407185,PN,678,03/04/2018
Growth and Investment,Building Control Services,BCS00,Postage & Distribution,370,1.96,Royal Mail,101554,19/04/2018,10258427,TC,,,,PN,3938.55,03/04/2018
Communities and Homes,Community Advice & Support Team,CAS00,Postage & Distribution,370,143.25,Royal Mail,101554,19/04/2018,10258427,TC,,,,PN,3938.55,03/04/2018
Communities and Homes,Central Business Support Services,CSS15,Postage & Distribution,370,266.27,Royal Mail,101554,19/04/2018,10258427,TC,,,,PN,3938.55,03/04/2018
Corporate Resources,Council Tax and NNDR Collection,CTX01,Postage & Distribution,370,289.47,Royal Mail,101554,19/04/2018,10258427,TC,,,,PN,3938.55,03/04/2018
Executive Director Office,Electoral Registration,ERG00,Postage & Distribution,370,67.46,Royal Mail,101554,19/04/2018,10258427,TC,,,,PN,3938.55,03/04/2018
Housing Revenue Account,Supervision and Management General,MAN00,Postage & Distribution,370,1309.83,Royal Mail,101554,19/04/2018,10258427,TC,,,,PN,3938.55,03/04/2018
Growth and Investment,Planning General/Income,PLN00,Postage & Distribution,370,60.75,Royal Mail,101554,19/04/2018,10258427,TC,,,,PN,3938.55,03/04/2018
Environment and Public Realm,Household Green Waste Collections,REF06,Postage & Distribution,370,1112.24,Royal Mail,101554,19/04/2018,10258427,TC,,,,PN,3938.55,03/04/2018
Growth and Investment,Visitor Centre,VSC00,Postage & Distribution,370,24.5,Royal Mail,101554,19/04/2018,10258427,TC,,,,PN,3938.55,03/04/2018
Environment and Public Realm,WSU Depot,WDP00,Postage & Distribution,370,6.57,Royal Mail,101554,19/04/2018,10258427,TC,,,,PN,3938.55,03/04/2018
Corporate Resources,Corporate Property Central Utilities,CPA02,Water Services,143,1359.62,Water Plus,101610,05/04/2018,10258423,TC,,,,PN,1359.62,03/04/2018
Executive Director Office,Electoral Services,ELC00,New Equipment,300,940.5,Shaw & Sons Ltd,101612,19/04/2018,10258885,TC,629353818,,629353818,PI,1128.6,16/04/2018
Housing Revenue Account,Control Centre (HRA),CCE00,R&M External Contractors,100,1516,Steve Diston Contract Flooring,101668,05/04/2018,10258357,TC,565742025,,565 7420 25,PN,1819.2,03/04/2018
Environment and Public Realm,Grounds Maintenance,PKS20,New Equipment,300,906.7,Tudor Environmental,101743,19/04/2018,10258504,TC,181621322,8693251,181621322,PN,1088.05,05/04/2018
Environment and Public Realm,Parks,PKS00,External Contractor & Operator,742,3444,Warwickshire Wildlife Trust,101860,12/04/2018,10258568,TC,670318740,585247,670318740,PN,4132.8,06/04/2018
Corporate Resources,Human Resources,RES30,Subscriptions,421,3850,West Midlands Employers,101880,26/04/2018,10259103,TC,GB729635111,,GB729635111,PN,4620,23/04/2018
Corporate Resources,Human Resources Centralised Services,RES31,Subscriptions,421,3250,West Midlands Employers,101880,26/04/2018,10259104,TC,GB729635111,,GB729635111,PN,3900,23/04/2018
Environment and Public Realm,Parks,PKS00,External Contractor & Operator,742,491.36,Warwickshire County Council,101893,12/04/2018,10258350,TC,272426659,,272426659,PN,572.98,03/04/2018
Housing Revenue Account,Supervision and Management General,MAN00,Consultancy Costs,740,500,Warwickshire County Council,101893,05/04/2018,10258365,TC,272426659,,272426659,PN,600,03/04/2018
Environment and Public Realm,Street Furniture,HIG01,External Contractor & Operator,742,38500.52,Warwickshire County Council,101893,19/04/2018,10258875,TC,272426659,,272426659,PI,38500.52,16/04/2018
Growth and Investment,Land Charges,LCH00,Payments to Other Local Authorities,710,11135,Warwickshire County Council,101893,19/04/2018,10258949,TC,272426659,,272426659,PN,13362,17/04/2018
Executive Director Office,"Communications, Consultation and Information Team",BTR20,Public Notices,382,510,Bullivant Media Ltd,101937,05/04/2018,10258317,TC,971117625,,971117625,PN,612,29/03/2018
Capital Housing Revenue Account,Heating Upgrades,HIM01,Capital Contract Payments,5000,2178.73,Adroit Services Ltd,101939,12/04/2018,10258527,CS,812650159,4729393,812650159,PN,2614.48,05/04/2018
Capital Housing Revenue Account,Heating Upgrades,HIM01,Capital Contract Payments,5000,4257.84,Adroit Services Ltd,101939,26/04/2018,10259040,CS,812650159,4729393,812650159,PN,5109.41,19/04/2018
Housing Revenue Account,Repairs and Maintenance - rechargeable works,UMR20,R&M External Contractors,100,621.5,Adroit Services Ltd,101939,26/04/2018,10259041,CS,812650159,4729393,812650159,PN,5863.63,19/04/2018
Capital Housing Revenue Account,Heating Upgrades,HIM01,Capital Contract Payments,5000,4264.86,Adroit Services Ltd,101939,26/04/2018,10259041,CS,812650159,4729393,812650159,PN,5863.63,19/04/2018
Capital Corporate Resources,Cattle Market Site,CMS00,Capital Contract Payments,5000,1750,H B Architects,107306,26/04/2018,10258720,TC,272379439,2172083,272379439,PI,2100,11/04/2018
Growth and Investment,About Face Exhibition,AGM08,External Printing,352,867,Moseley Signs,107594,19/04/2018,10258873,TC,273211976,,273211976,PI,1040.4,16/04/2018
Corporate Resources,Legal Services,DEM20,Payments to Other Local Authorities,710,33233.05,Nuneaton & Bedworth Borough Council,108060,05/04/2018,10258436,TC,115336790,,115336790,PN,39879.66,04/04/2018
Capital Housing Revenue Account,Kitchen Modifications,HIK10,Capital Contract Payments,5000,1223,Nuneaton & Bedworth Borough Council,108060,12/04/2018,10258437,TC,115336790,,115336790,PN,4996.8,04/04/2018
Capital Housing Revenue Account,Heating Upgrades,HIM01,Capital Contract Payments,5000,1283,Nuneaton & Bedworth Borough Council,108060,12/04/2018,10258437,TC,115336790,,115336790,PN,4996.8,04/04/2018
Capital Housing Revenue Account,Bathroom Modifications,HIS01,Capital Contract Payments,5000,1658,Nuneaton & Bedworth Borough Council,108060,12/04/2018,10258437,TC,115336790,,115336790,PN,4996.8,04/04/2018
Environment and Public Realm,Crematorium,CRM00,Medical Referees Fees,413,1813,Dunchurch Surgery,108687,12/04/2018,10258710,TC,,,,PN,1813,11/04/2018
Environment and Public Realm,Garage,WVR00,Materials,303,34206.65,Watson Petroleum,110361,05/04/2018,10258429,TC,195046059,,195046059,PI,41047.98,03/04/2018
Environment and Public Realm,Garage,WVR00,Materials,303,1998,Watson Petroleum,110361,05/04/2018,10258430,TC,195046059,,195046059,PI,2397.6,03/04/2018
Environment and Public Realm,Garage,WVR00,Materials,303,28575,Watson Petroleum,110361,05/04/2018,10258431,TC,195046059,,195046059,PI,34290,03/04/2018
Environment and Public Realm,Garage,WVR00,Materials,303,520,Vision Techniques (UK) LTD,111526,12/04/2018,10258281,TC,712562946,,712562946,PN,624,29/03/2018
Growth and Investment,About Face Exhibition,AGM08,Hospitality,331,450,The Chefs Kitchen (UK) Limited,111682,12/04/2018,10258602,TC,765564984,,765 5649 84,PI,540,09/04/2018
Communities and Homes,Maintenance of Customer Services Systems,CIS21,Software Maintenance,374,6598,Civica UK Ltd,112724,05/04/2018,10258382,TC,391171065,1909454,391171065,PI,7917.6,03/04/2018
Corporate Resources,Council Tax and NNDR Collection,CTX01,Software Purchase,373,1620,Civica UK Ltd,112724,05/04/2018,10258454,TC,391171065,1909454,391171065,PI,1944,04/04/2018
Corporate Resources,Council Tax and NNDR Collection,CTX01,Postage & Distribution,370,640,Civica UK Ltd,112724,05/04/2018,10258455,TC,391171065,1909454,391171065,PI,768,04/04/2018
Corporate Resources,Legal Services,DEM20,Ref. Books Journals & Magazines,353,570,Lexis Nexis Butterworths,114132,19/04/2018,10258644,TC,GB730859520,2746621,GB730859520,PN,628.71,09/04/2018
Environment and Public Realm,Cemeteries General,CEM00,External Contractor & Operator,742,637,Streetmaster (South Wales) Ltd,114898,12/04/2018,10258701,TC,438532540,,438 5325 40,PI,764.4,11/04/2018
Environment and Public Realm,Grounds Maintenance,PKS20,Vehicle Repair and Maintenance,200,1246.04,T H White Ltd,116311,12/04/2018,10258650,TC,137567053,519868,137567053,PN,1495.25,09/04/2018
Environment and Public Realm,Grounds Maintenance,PKS20,Contract Hire,220,650,T H White Ltd,116311,26/04/2018,10259011,TC,137567053,519868,137567053,PI,780,18/04/2018
Housing Revenue Account,Miscellaneous Unplanned Maintenance and Repair,UMR17,R&M External Contractors,100,525,Hi-Lite Electrical Ltd,118814,05/04/2018,10258257,TC,813178832,,813178832,PN,630,28/03/2018
Environment and Public Realm,Crematorium,CRM00,External Contractor & Operator,742,720,MPCS Services,119391,12/04/2018,10258647,TC,,,,PN,720,09/04/2018
Corporate Resources,Human Resources Centralised Services,RES31,Training fees,11,1442.54,Nelson Training,120218,19/04/2018,10258988,TC,781446904,,781446904,PN,1731.05,18/04/2018
Housing Revenue Account,Property Maintenance,MAN23,Agency Staff,3,5533.6,Venn Group Recruitment Solutions,121594,26/04/2018,10259056,TC,766711704,,766711704,PN,6640.32,19/04/2018
Communities and Homes,Maintenance of Customer Services Systems,CIS21,Software Maintenance,374,2372.26,Northgate Public Services (UK)  Ltd,121606,19/04/2018,10255884,TC,207588545,968498,207588545,PN,2846.71,22/01/2018
Communities and Homes,Maintenance of Customer Services Systems,CIS21,Software Maintenance,374,1300,Northgate Public Services (UK)  Ltd,121606,12/04/2018,10258021,TC,207588545,968498,207588545,PN,1560,22/03/2018
Communities and Homes,Maintenance of Customer Services Systems,CIS21,Software Maintenance,374,527.26,Northgate Public Services (UK)  Ltd,121606,19/04/2018,10258673,TC,207588545,968498,207588545,PN,632.71,11/04/2018
Communities and Homes,Maintenance of Customer Services Systems,CIS21,Software Maintenance,374,-1930.32,Northgate Public Services (UK)  Ltd,121606,19/04/2018,10258827,TC,207588545,968498,207588545,PN,-2316.38,12/04/2018
Communities and Homes,ITC & Support Services,CIS10,Hardware Maintenance,376,3403.12,Cable & Wireless/T/A Vodafone,123224,12/04/2018,10258590,TC,569953277,,569953277,PN,4083.74,09/04/2018
Growth and Investment,About Face Exhibition,AGM08,External Printing,352,1745,Krishna Enterprises Ltd T/A Steers Printing,123590,05/04/2018,10258488,TC,844218628,,844218628,PN,1745,04/04/2018
Executive Director Office,"Communications, Consultation and Information Team",BTR20,Publicity & Marketing,377,500,Krishna Enterprises Ltd T/A Steers Printing,123590,12/04/2018,10258702,TC,844218628,,844218628,PN,600,11/04/2018
Growth and Investment,Family Lifestyle Project,LSD11,Development Activities,450,537.5,Nuneaton & Bedworth Leisure Trust,125775,12/04/2018,10258682,TC,824455625,4955172,824455625,PN,537.5,11/04/2018
Housing Revenue Account,Control Centre (HRA),CCE00,New Equipment,300,483.33,PC World Business,129082,12/04/2018,10258646,TC,,,,PN,580,09/04/2018
Growth and Investment,Hall of Fame,TRY00,Other Miscellaneous Expenses,444,2873,Take One Media Ltd,129314,26/04/2018,10259108,TC,793190506,4018955,793190506,PN,3447.6,23/04/2018
Executive Director Office,Electoral Services,ELC00,External Printing,352,20125.14,Print.UK.Com,129503,12/04/2018,10258367,TC,584533812,2691346,584533812,PN,24150.17,03/04/2018
Executive Director Office,Electoral Services,ELC00,External Printing,352,1565.78,Print.UK.Com,129503,12/04/2018,10258368,TC,584533812,2691346,584533812,PN,1878.93,03/04/2018
Executive Director Office,"Communications, Consultation and Information Team",BTR20,Consultation,378,3300,Touch Broadcasting Co Ltd T/A Rugby FM,131249,05/04/2018,10257894,TC,792071032,,792071032,PN,3300,19/03/2018
Growth and Investment,Hall of Fame,TRY00,Publicity & Marketing,377,500,Touch Broadcasting Co Ltd T/A Rugby FM,131249,12/04/2018,10258561,TC,792071032,,792071032,PN,600,06/04/2018
Environment and Public Realm,Parks,PKS00,Maintenance of Equipment,301,936,I D Welding & Fabrications,131407,12/04/2018,10258346,CS,687567859,,687567859,PI,1123.2,29/03/2018
Environment and Public Realm,Parks,PKS00,Maintenance of Equipment,301,1755.95,Sutcliffe Play Ltd,131511,19/04/2018,10258724,TC,817894678,4780910,817894678,PI,2294.29,11/04/2018
Environment and Public Realm,Section 106 Grounds Maintenance,PKS16,External Contractor & Operator,742,155.96,Sutcliffe Play Ltd,131511,19/04/2018,10258724,TC,817894678,4780910,817894678,PI,2294.29,11/04/2018
Executive Director Office,Electoral Registration,ERG00,External Printing,352,834,Electoral Reform Services,131623,19/04/2018,10258478,TC,236868915,2263092,236 8689 15,PN,2069.72,04/04/2018
Executive Director Office,Electoral Registration,ERG00,Postage & Distribution,370,890.77,Electoral Reform Services,131623,19/04/2018,10258478,TC,236868915,2263092,236 8689 15,PN,2069.72,04/04/2018
Environment and Public Realm,Car Parks General,CPK01,Cash Collection,744,1167.24,Jade Security Services Ltd,131711,12/04/2018,10258571,TC,642505654,,642505654,PN,1400.68,09/04/2018
Communities and Homes,CAST - Bed & Breakfast,CAS01,Bed and Breakfast Temporary Accommodation,146,646,N Mallidi T/A Park Side Guest House,132033,26/04/2018,10259091,TC,,,,PN,646,20/04/2018
Communities and Homes,CAST - Bed & Breakfast,CAS01,Bed and Breakfast Temporary Accommodation,146,630,N Mallidi T/A Park Side Guest House,132033,26/04/2018,10259151,TC,,,,PN,630,24/04/2018
Growth and Investment,Economic Development General,ECD00,Other Agencies,734,36361.88,Rugby First Ltd - BID,133176,05/04/2018,10258323,TC,874675571,,874675571,PN,43634.26,29/03/2018
Growth and Investment,Town Centre CCTV and Management,TVM00,Other Agencies,734,21460.59,Rugby First Ltd - BID,133176,19/04/2018,10258520,TC,874675571,,874675571,PN,25752.71,05/04/2018
Growth and Investment,Rugby Town Development Activities,VSC10,Development Activities,450,5000,Rugby First Ltd - BID,133176,12/04/2018,10258522,TC,874675571,,874675571,PN,6000,05/04/2018
Housing Revenue Account,Supervision and Management General,MAN00,Training fees,11,1910,Ocean Media Group Ltd,133594,12/04/2018,10258709,TC,,,,PN,2292,11/04/2018
Housing Revenue Account,Fire Alarm maintenance,UMR13,R&M External Contractors,100,1182.16,Sunfish Services Ltd,133886,12/04/2018,10258630,CS,845393893,,845393893,PN,1418.59,09/04/2018
Corporate Resources,Corporate Property R&M,CPA01,R&M External Contractors,100,1526.23,Sunfish Services Ltd,133886,19/04/2018,10258631,CS,845393893,,845393893,PN,1831.48,09/04/2018
Corporate Resources,Universal Credit,HBA20,Other Agencies,734,513.32,Bedworth Rugby & Nuneaton Citizens Advice Bureau,139552,12/04/2018,10258538,TC,,,,PN,513.32,05/04/2018
Growth and Investment,Planning General/Income,PLN00,Consultancy Costs,740,575,P Rhodes,140076,12/04/2018,10258582,TC,,,,PN,575,09/04/2018
Housing Revenue Account,Multi-Storey Flats,MSF00,External Contractor & Operator,742,33761.28,StoneWall Security Ltd,140775,12/04/2018,10258506,TC,937387578,6587546,937387578,PN,40513.54,05/04/2018
Environment and Public Realm,Car Parks General,CPK01,External Contractor & Operator,742,662.4,StoneWall Security Ltd,140775,12/04/2018,10258507,TC,937387578,6587546,937387578,PN,794.88,05/04/2018
Housing Revenue Account,Multi-Storey Flats,MSF00,External Contractor & Operator,742,1170,StoneWall Security Ltd,140775,12/04/2018,10258508,TC,937387578,6587546,937387578,PN,1404,05/04/2018
Housing Revenue Account,Multi-Storey Flats,MSF00,External Contractor & Operator,742,807.5,StoneWall Security Ltd,140775,12/04/2018,10258509,TC,937387578,6587546,937387578,PN,969,05/04/2018
Housing Revenue Account,Multi-Storey Flats,MSF00,External Contractor & Operator,742,33233.76,StoneWall Security Ltd,140775,12/04/2018,10258510,TC,937387578,6587546,937387578,PN,39880.51,05/04/2018
Housing Revenue Account,Multi-Storey Flats,MSF00,Other Miscellaneous Expenses,444,-1481.76,StoneWall Security Ltd,140775,12/04/2018,10258676,TC,937387578,6587546,937387578,PN,-1778.11,11/04/2018
Environment and Public Realm,Crematorium,CRM00,Telephone Expenses,371,538,Zen Internet Ltd,141612,12/04/2018,10258408,TC,686049501,3101568,686049501,PN,645.6,03/04/2018
Communities and Homes,Broadband & internet,TEL01,Telephone Expenses,371,970.25,Zen Internet Ltd,141612,26/04/2018,10259122,TC,686049501,3101568,686049501,PN,1164.3,23/04/2018
Environment and Public Realm,Domestic Waste Collection/Recycling,REF00,External Contractor & Operator,742,46637.93,Pure Recycling (Warwick) Limited,141883,19/04/2018,10258608,TC,922427047,,922427047,PN,55965.52,09/04/2018
Housing Revenue Account,Estate Management,MAN22,Agency Staff,3,641.04,Comensura Limited,142471,05/04/2018,10258312,TC,755321145,4085767,755 3211 45,PN,10687.05,29/03/2018
Growth and Investment,Planning General/Income,PLN00,Agency Staff,3,1297.46,Comensura Limited,142471,05/04/2018,10258312,TC,755321145,4085767,755 3211 45,PN,10687.05,29/03/2018
Housing Revenue Account,Estate Management,MAN22,Agency Staff,3,649.55,Comensura Limited,142471,12/04/2018,10258499,TC,755321145,4085767,755 3211 45,PN,8961.28,05/04/2018
Housing Revenue Account,Estate Management,MAN22,Agency Staff,3,690.13,Comensura Limited,142471,19/04/2018,10258692,TC,755321145,4085767,755 3211 45,PN,13641.27,11/04/2018
Environment and Public Realm,Grounds Maintenance,PKS20,Agency Staff,3,477.63,Comensura Limited,142471,19/04/2018,10258692,TC,755321145,4085767,755 3211 45,PN,13641.27,11/04/2018
Growth and Investment,Planning General/Income,PLN00,Agency Staff,3,2507.5,Comensura Limited,142471,19/04/2018,10258692,TC,755321145,4085767,755 3211 45,PN,13641.27,11/04/2018
Environment and Public Realm,Domestic Waste Collection/Recycling,REF00,Agency Staff,3,6391.86,Comensura Limited,142471,19/04/2018,10258692,TC,755321145,4085767,755 3211 45,PN,13641.27,11/04/2018
Environment and Public Realm,Street Cleansing General,STC00,Agency Staff,3,1300.6,Comensura Limited,142471,19/04/2018,10258692,TC,755321145,4085767,755 3211 45,PN,13641.27,11/04/2018
Communities and Homes,Maintenance of Customer Services Systems,CIS21,Software Maintenance,374,12284,Xpress Software Solutions Ltd,143411,12/04/2018,10258100,TC,771293714,,771293714,PN,14740.8,23/03/2018
Corporate Resources,General Financial Services,GFS00,Subscriptions,421,9422.86,Local Government Association,144471,12/04/2018,10258680,TC,676078107,,676078107,PN,11307.43,11/04/2018
Corporate Resources,General Financial Services,GFS00,Consultancy Costs,740,2787.5,PSTAX,145204,26/04/2018,10259005,TC,815158828,4810070,815158828,PI,3345,18/04/2018
Corporate Resources,General Financial Services,GFS00,External Audit Fees,748,2500,Grant Thornton UK LLP,145501,12/04/2018,10258340,TC,835586102,,835586102,PI,3000,29/03/2018
Communities and Homes,Homelessness Prevention,CAS06,Private Sector Leasing Scheme Properties,148,1280,Edward Knight,145930,26/04/2018,10259188,TC,101295358,,101295358,PN,1280,24/04/2018
Corporate Resources,Legal Services,DEM20,Conference & Seminar Fees,401,500,MBL Seminars,146589,26/04/2018,10259128,TC,816093826,4746709,816093826,PN,600,23/04/2018
Housing Revenue Account,Sheltered Housing,AGP00,Electricity,130,226.33,Total Gas & Power Ltd,146631,19/04/2018,10258915,TC,689638949,2172239,689638949,PN,10470.62,16/04/2018
Housing Revenue Account,Alfred Green Close AP,AGP01,Electricity,130,292.84,Total Gas & Power Ltd,146631,19/04/2018,10258915,TC,689638949,2172239,689638949,PN,10470.62,16/04/2018
Housing Revenue Account,Avon Court AP,AGP02,Electricity,130,208.46,Total Gas & Power Ltd,146631,19/04/2018,10258915,TC,689638949,2172239,689638949,PN,10470.62,16/04/2018
Housing Revenue Account,Dickinson Court AP,AGP03,Electricity,130,454.59,Total Gas & Power Ltd,146631,19/04/2018,10258915,TC,689638949,2172239,689638949,PN,10470.62,16/04/2018
Housing Revenue Account,Duffy Place AP,AGP04,Electricity,130,182.53,Total Gas & Power Ltd,146631,19/04/2018,10258915,TC,689638949,2172239,689638949,PN,10470.62,16/04/2018
Housing Revenue Account,Frederick Press Way AP,AGP06,Electricity,130,542.22,Total Gas & Power Ltd,146631,19/04/2018,10258915,TC,689638949,2172239,689638949,PN,10470.62,16/04/2018
Housing Revenue Account,John Thwaites Close AP,AGP08,Electricity,130,102.56,Total Gas & Power Ltd,146631,19/04/2018,10258915,TC,689638949,2172239,689638949,PN,10470.62,16/04/2018
Housing Revenue Account,Mercer Court AP,AGP09,Electricity,130,267.64,Total Gas & Power Ltd,146631,19/04/2018,10258915,TC,689638949,2172239,689638949,PN,10470.62,16/04/2018
Housing Revenue Account,Pettiver Crescent I AP,AGP10,Electricity,130,153.89,Total Gas & Power Ltd,146631,19/04/2018,10258915,TC,689638949,2172239,689638949,PN,10470.62,16/04/2018
Housing Revenue Account,Robotham Close AP,AGP11,Electricity,130,295.16,Total Gas & Power Ltd,146631,19/04/2018,10258915,TC,689638949,2172239,689638949,PN,10470.62,16/04/2018
Housing Revenue Account,Stacey Court AP,AGP12,Electricity,130,79.09,Total Gas & Power Ltd,146631,19/04/2018,10258915,TC,689638949,2172239,689638949,PN,10470.62,16/04/2018
Housing Revenue Account,Stretton Court AP,AGP13,Electricity,130,113.64,Total Gas & Power Ltd,146631,19/04/2018,10258915,TC,689638949,2172239,689638949,PN,10470.62,16/04/2018
Housing Revenue Account,Sun Street/Windsor Street AP,AGP14,Electricity,130,265.99,Total Gas & Power Ltd,146631,19/04/2018,10258915,TC,689638949,2172239,689638949,PN,10470.62,16/04/2018
Housing Revenue Account,Lesley Souter House AP,AGP16,Electricity,130,620.77,Total Gas & Power Ltd,146631,19/04/2018,10258915,TC,689638949,2172239,689638949,PN,10470.62,16/04/2018
Housing Revenue Account,Tanser Court AP,AGP17,Electricity,130,502.17,Total Gas & Power Ltd,146631,19/04/2018,10258915,TC,689638949,2172239,689638949,PN,10470.62,16/04/2018
Housing Revenue Account,Edward Court AP,AGP19,Electricity,130,281.86,Total Gas & Power Ltd,146631,19/04/2018,10258915,TC,689638949,2172239,689638949,PN,10470.62,16/04/2018
Housing Revenue Account,Albert Square AP,AGP20,Electricity,130,909.4,Total Gas & Power Ltd,146631,19/04/2018,10258915,TC,689638949,2172239,689638949,PN,10470.62,16/04/2018
Housing Revenue Account,Eliot Court AP,AGP25,Electricity,130,77.6,Total Gas & Power Ltd,146631,19/04/2018,10258915,TC,689638949,2172239,689638949,PN,10470.62,16/04/2018
Housing Revenue Account,Clare Court Site,AGP27,Electricity,130,35.3,Total Gas & Power Ltd,146631,19/04/2018,10258915,TC,689638949,2172239,689638949,PN,10470.62,16/04/2018
Housing Revenue Account,Alexandra/James Court AP,AGP30,Electricity,130,183.64,Total Gas & Power Ltd,146631,19/04/2018,10258915,TC,689638949,2172239,689638949,PN,10470.62,16/04/2018
Housing Revenue Account,Hirst Close AP,AGP33,Electricity,130,89.37,Total Gas & Power Ltd,146631,19/04/2018,10258915,TC,689638949,2172239,689638949,PN,10470.62,16/04/2018
Housing Revenue Account,Assheton Close AP,AGP36,Electricity,130,59.65,Total Gas & Power Ltd,146631,19/04/2018,10258915,TC,689638949,2172239,689638949,PN,10470.62,16/04/2018
Housing Revenue Account,Bennett Court/Warwick Road AP,AGP38,Electricity,130,-2494.26,Total Gas & Power Ltd,146631,19/04/2018,10258915,TC,689638949,2172239,689638949,PN,10470.62,16/04/2018
Housing Revenue Account,Brookside Pailton AP,AGP40,Electricity,130,57.43,Total Gas & Power Ltd,146631,19/04/2018,10258915,TC,689638949,2172239,689638949,PN,10470.62,16/04/2018
Housing Revenue Account,Clifton Road AP,AGP41,Electricity,130,21.63,Total Gas & Power Ltd,146631,19/04/2018,10258915,TC,689638949,2172239,689638949,PN,10470.62,16/04/2018
Housing Revenue Account,Deepmore Road/Lytham Road AP,AGP42,Electricity,130,176.87,Total Gas & Power Ltd,146631,19/04/2018,10258915,TC,689638949,2172239,689638949,PN,10470.62,16/04/2018
Housing Revenue Account,Edmondson Close Dunchurch AP,AGP44,Electricity,130,170.96,Total Gas & Power Ltd,146631,19/04/2018,10258915,TC,689638949,2172239,689638949,PN,10470.62,16/04/2018
Housing Revenue Account,Featherbed Lane I AP,AGP45,Electricity,130,196.73,Total Gas & Power Ltd,146631,19/04/2018,10258915,TC,689638949,2172239,689638949,PN,10470.62,16/04/2018
Housing Revenue Account,Fox Close AP,AGP47,Electricity,130,185.7,Total Gas & Power Ltd,146631,19/04/2018,10258915,TC,689638949,2172239,689638949,PN,10470.62,16/04/2018
Housing Revenue Account,Great Balance Brinklow AP,AGP48,Electricity,130,28.18,Total Gas & Power Ltd,146631,19/04/2018,10258915,TC,689638949,2172239,689638949,PN,10470.62,16/04/2018
Housing Revenue Account,Harold Cox Place AP,AGP51,Electricity,130,76.87,Total Gas & Power Ltd,146631,19/04/2018,10258915,TC,689638949,2172239,689638949,PN,10470.62,16/04/2018
Housing Revenue Account,Jackson Road I AP,AGP53,Electricity,130,31.2,Total Gas & Power Ltd,146631,19/04/2018,10258915,TC,689638949,2172239,689638949,PN,10470.62,16/04/2018
Housing Revenue Account,Lever Road I AP,AGP57,Electricity,130,157.81,Total Gas & Power Ltd,146631,19/04/2018,10258915,TC,689638949,2172239,689638949,PN,10470.62,16/04/2018
Housing Revenue Account,Meadow Way/Primrose Court AP,AGP58,Electricity,130,107.25,Total Gas & Power Ltd,146631,19/04/2018,10258915,TC,689638949,2172239,689638949,PN,10470.62,16/04/2018
Housing Revenue Account,Norman Road AP,AGP60,Electricity,130,11.01,Total Gas & Power Ltd,146631,19/04/2018,10258915,TC,689638949,2172239,689638949,PN,10470.62,16/04/2018
Housing Revenue Account,Patterdale AP,AGP61,Electricity,130,27.99,Total Gas & Power Ltd,146631,19/04/2018,10258915,TC,689638949,2172239,689638949,PN,10470.62,16/04/2018
Housing Revenue Account,The Kent AP,AGP67,Electricity,130,58.98,Total Gas & Power Ltd,146631,19/04/2018,10258915,TC,689638949,2172239,689638949,PN,10470.62,16/04/2018
Housing Revenue Account,Victoria Street/Lawford Road AP,AGP68,Electricity,130,14.68,Total Gas & Power Ltd,146631,19/04/2018,10258915,TC,689638949,2172239,689638949,PN,10470.62,16/04/2018
Housing Revenue Account,Parkfield Road/Lea Crescent AP,AGP71,Electricity,130,190.04,Total Gas & Power Ltd,146631,19/04/2018,10258915,TC,689638949,2172239,689638949,PN,10470.62,16/04/2018
Housing Revenue Account,Pennington Street/Round Street AP,AGP72,Electricity,130,115.68,Total Gas & Power Ltd,146631,19/04/2018,10258915,TC,689638949,2172239,689638949,PN,10470.62,16/04/2018
Housing Revenue Account,Control Centre CCTV,CCE01,Electricity,130,603.53,Total Gas & Power Ltd,146631,19/04/2018,10258915,TC,689638949,2172239,689638949,PN,10470.62,16/04/2018
Housing Revenue Account,Supervision and Management General,MAN00,Electricity,130,194.78,Total Gas & Power Ltd,146631,19/04/2018,10258915,TC,689638949,2172239,689638949,PN,10470.62,16/04/2018
Housing Revenue Account,Multi-Storey Flats,MSF00,Electricity,130,3294.68,Total Gas & Power Ltd,146631,19/04/2018,10258915,TC,689638949,2172239,689638949,PN,10470.62,16/04/2018
Communities and Homes,Woodside Park,TVR00,Electricity,130,479.99,Total Gas & Power Ltd,146631,19/04/2018,10258915,TC,689638949,2172239,689638949,PN,10470.62,16/04/2018
Growth and Investment,Visitor Centre,VSC00,Publicity & Marketing,377,1950,Rugby Ventures Ltd,146717,19/04/2018,10258858,TC,987894523,,987894523,PN,2340,16/04/2018
Housing Revenue Account,Asbestos Surveys,UMR05,R&M External Contractors,100,1496,Environmental Essentials Ltd,146842,12/04/2018,10258528,TC,844887474,5097507,844887474,PN,1795.2,05/04/2018
Housing Revenue Account,Multi-Storey Flats,MSF00,Other Miscellaneous Expenses,444,960,Environmental Essentials Ltd,146842,26/04/2018,10259138,TC,844887474,5097507,844887474,PN,1152,23/04/2018
Corporate Resources,Retired Employees,RET00,Additional Pension Payments,14,9492,WCC Pension Fund,146914,26/04/2018,10259004,NT,,,,PN,9492,18/04/2018
Corporate Resources,Retired Employees,RET00,Employers' Superannuation Contribution,2,25916.67,WCC Pension Fund,146914,26/04/2018,10259190,NT,,,,PN,25916.67,24/04/2018
Communities and Homes,ITC & Support Services,CIS10,Hardware Maintenance,376,1800,NTA Monitor Ltd,147036,26/04/2018,10259053,TC,683337710,,683337710,PI,2160,19/04/2018
Environment and Public Realm,Domestic Waste Collection/Recycling,REF00,External Contractor & Operator,742,510,James Baxter Haulage Ltd,147159,19/04/2018,10258805,TC,620070986,,620070986,PN,612,12/04/2018
Corporate Resources,Corporate Property R&M,CPA01,R&M External Contractors,100,770.05,Condair plc,147263,19/04/2018,10258662,CS,358496894,358496894,358496894,PN,924.06,10/04/2018
Housing Revenue Account,Unplanned Maintenance and Repair,UMR00,Training fees,11,720,Xtra Skills,147265,12/04/2018,10258519,TC,,,,PN,864,05/04/2018
Capital Housing Revenue Account,Fire Risk Prevention Works,HCE18,Capital Contract Payments,5000,5550,Arden Construction Ltd,147430,12/04/2018,10258539,CS,589378956,2722631,589378956,PN,6660,05/04/2018
Environment and Public Realm,Regulatory Services,REG00,External Contractor & Operator,742,2244,SOCOTEC UK LTD,147697,19/04/2018,10258871,TC,864124823,2880501,864124823,PI,2692.8,16/04/2018
Executive Director Office,"Communications, Consultation and Information Team",BTR20,Publicity & Marketing,377,1350,Cole Creative Communications Ltd,147857,19/04/2018,10258738,TC,748173608,,748173608,PN,1620,12/04/2018
Communities and Homes,ITC & Support Services,CIS10,Software Maintenance,374,3000,NSC Legacydata Solutions Ltd,148083,12/04/2018,10258696,TC,123604253,7775842,123604253,PI,3600,11/04/2018
Communities and Homes,CAST - Private Sector Leasing,CAS03,Building cleaning,170,1094.07,Solutions Services,148937,12/04/2018,10258457,TC,831753431,,831753431,PN,1312.88,04/04/2018
Corporate Resources,General Financial Services,GFS00,Subscriptions,421,2136,North Kesteven District Council,148948,26/04/2018,10259133,TC,118155875,,118155875,PN,2136,23/04/2018
Growth and Investment,The Benn Hall,BHL00,Purchases for Resale,305,457.46,Brakes,148974,26/04/2018,10258869,TC,202935388,2035315,202935388,PN,510.28,16/04/2018
Environment and Public Realm,Parks,PKS00,Materials,303,687.5,AHS Ltd,149255,05/04/2018,10258348,TC,621583942,2803955,621583942,PI,825,29/03/2018
Housing Revenue Account,Miscellaneous Unplanned Maintenance and Repair,UMR17,R&M External Contractors,100,375.3,Arden Health and Safety,149273,05/04/2018,10258233,TC,,,,PN,1048.15,27/03/2018
Housing Revenue Account,Multi-Storey Flats,MSF00,Other Miscellaneous Expenses,444,300,Arden Health and Safety,149273,05/04/2018,10258233,TC,,,,PN,1048.15,27/03/2018
Capital Housing Revenue Account,Fire Risk Prevention Works,HCE18,Capital Contract Payments,5000,198.16,Arden Health and Safety,149273,05/04/2018,10258233,TC,,,,PN,1048.15,27/03/2018
Environment and Public Realm,Garage,WVR00,Materials,303,1127.85,Grenke Leasing Ltd,149293,05/04/2018,10258372,TC,803892226,4539806,803892226,PN,1353.42,03/04/2018
Environment and Public Realm,Garage,WVR00,Materials,303,990.93,Grenke Leasing Ltd,149293,05/04/2018,10258374,TC,803892226,4539806,803892226,PN,1189.12,03/04/2018
Environment and Public Realm,Garage,WVR00,Materials,303,722.9,Tom Tom International BV,149311,19/04/2018,10258848,TC,273433560,,273433560,PN,867.48,16/04/2018
Housing Revenue Account,Miscellaneous Unplanned Maintenance and Repair,UMR17,R&M External Contractors,100,1642.33,Close Circuit Security Services Ltd,149426,12/04/2018,10258523,TC,695360895,3543850,695360895,PN,5170.79,05/04/2018
Housing Revenue Account,Control Centre CCTV,CCE01,Maintenance of Equipment,301,2666.66,Close Circuit Security Services Ltd,149426,12/04/2018,10258523,TC,695360895,3543850,695360895,PN,5170.79,05/04/2018
Housing Revenue Account,Fire Alarm maintenance,UMR13,R&M External Contractors,100,219.75,Close Circuit Security Services Ltd,149426,26/04/2018,10258893,TC,695360895,3543850,695360895,PN,2072.62,16/04/2018
Housing Revenue Account,Miscellaneous Unplanned Maintenance and Repair,UMR17,R&M External Contractors,100,696.5,Close Circuit Security Services Ltd,149426,26/04/2018,10258893,TC,695360895,3543850,695360895,PN,2072.62,16/04/2018
Housing Revenue Account,Control Centre CCTV,CCE01,Maintenance of Equipment,301,810.93,Close Circuit Security Services Ltd,149426,26/04/2018,10258893,TC,695360895,3543850,695360895,PN,2072.62,16/04/2018
Environment and Public Realm,Crematorium,CRM00,R&M External Contractors,100,9992.75,Facultatieve Technologies Limited,149571,19/04/2018,10258763,TC,GB169285327,633222,GB 169 2853 27,PN,11991.3,12/04/2018
Environment and Public Realm,Crematorium,CRM00,R&M External Contractors,100,9992.75,Facultatieve Technologies Limited,149571,19/04/2018,10258981,TC,GB169285327,633222,GB 169 2853 27,PN,11991.3,18/04/2018
Environment and Public Realm,Crematorium,CRM00,R&M External Contractors,100,5040,Vivedia Ltd,149624,12/04/2018,10258398,TC,8830029332,,8830029332,PN,6048,03/04/2018
Environment and Public Realm,Crematorium,CRM00,Organist Fees,414,1650,Tracey Daulman,149686,26/04/2018,10259113,TC,,,,PN,1650,23/04/2018
Corporate Resources,Corporate Property R&M,CPA01,R&M External Contractors,100,698,Hamworthy Heating Ltd,149707,05/04/2018,10258268,TC,,,,PN,837.6,28/03/2018
Corporate Resources,Corporate Property R&M,CPA01,R&M External Contractors,100,454,Hamworthy Heating Ltd,149707,05/04/2018,10258438,TC,,,,PN,544.8,04/04/2018
Capital Housing Revenue Account,Heating Upgrades,HIM01,Capital Contract Payments,5000,4679.49,PTS Rugby,149845,26/04/2018,10258716,TC,408556737,,408556737,PN,5615.39,11/04/2018
Capital Housing Revenue Account,Heating Upgrades,HIM01,Capital Contract Payments,5000,940.39,PTS Rugby,149845,26/04/2018,10258717,TC,408556737,,408556737,PN,1128.47,11/04/2018
Capital Housing Revenue Account,Kitchen Modifications,HIK10,Capital Contract Payments,5000,4788.48,Moores Furniture,150018,12/04/2018,10258526,TC,613366162,1083749,613366162,PN,5746.18,05/04/2018
Communities and Homes,Central Business Support Services,CSS15,External Printing,352,588.8,Peak Envelopes T/A Ebury Ltd,150217,05/04/2018,10258337,TC,224545672,,224545672,PI,706.56,29/03/2018
Communities and Homes,CAST - Bed & Breakfast,CAS01,Other Miscellaneous Expenses,444,550,Boughton Removals,150311,19/04/2018,10258868,TC,,,,PN,550,16/04/2018
Corporate Resources,Corporate Assurance,RES40,Consultancy Costs,740,4875,TIAA,150337,12/04/2018,10258068,TC,792453014,,792453014,PI,5850,22/03/2018
Environment and Public Realm,Street Cleansing General,STC00,Contract Hire,220,699.6,Enterprise Flex T/A Burnt Tree Vehicle Hire,150375,12/04/2018,10258391,TC,884260016,2384046,884260016,PN,839.52,03/04/2018
Growth and Investment,The Benn Hall,BHL00,Events Tickets - Zero Rated,1405,7430.5,Five Star Theatre,150387,19/04/2018,10258835,TC,,,,PN,7430.5,16/04/2018
Housing Revenue Account,Supervision and Management General,MAN00,Premises Related Insurance Premiums,180,3802.42,Arthur J Gallagher T/A Heath Lambert Ltd Client Money,150527,05/04/2018,10258449,TC,48474629,1199129,48474629,PN,4964,04/04/2018
Communities and Homes,House Purchase and Improvement Loans,HPL00,Other Insurance Premiums,440,471.58,Arthur J Gallagher T/A Heath Lambert Ltd Client Money,150527,05/04/2018,10258449,TC,48474629,1199129,48474629,PN,4964,04/04/2018
Housing Revenue Account,Supervision and Management General,MAN00,Reimbursements - Outside Scope,1107,690,Arthur J Gallagher T/A Heath Lambert Ltd Client Money,150527,05/04/2018,10258449,TC,48474629,1199129,48474629,PN,4964,04/04/2018
Corporate Resources,General Financial Services,GFS00,Other Insurance Premiums,440,4300,Arthur J Gallagher T/A Heath Lambert Ltd Client Money,150527,26/04/2018,10258967,TC,48474629,1199129,48474629,PN,4300,17/04/2018
Communities and Homes,Maintenance of Customer Services Systems,CIS21,Software Maintenance,374,1845,Oneserve Ltd,150556,12/04/2018,10258397,TC,104254751,7387807,104254751,PN,2214,03/04/2018
Housing Revenue Account,Unplanned Maintenance and Repair,UMR00,Telephone Expenses,371,432.4,Oneserve Ltd,150556,12/04/2018,10258728,TC,104254751,7387807,104254751,PN,518.88,11/04/2018
Communities and Homes,CL Grants,CGS00,Grants To Voluntary Organisations,720,1500,Tea Leaf Tales,150596,19/04/2018,10258952,NT,,,,PN,1500,17/04/2018
Environment and Public Realm,Section 106 Grounds Maintenance,PKS16,Materials,303,570,G J Barber,150828,26/04/2018,10259204,TC,,,,PN,570,25/04/2018
Environment and Public Realm,Safety and Resilience,EPL00,Other Miscellaneous Expenses,444,692.64,AST Systems,150914,12/04/2018,10258432,TC,720108683,3667051,720108683,PI,831.16,03/04/2018
Housing Revenue Account,Unplanned Maintenance and Repair,UMR00,Training fees,11,1539,FloorSkills Ltd,150930,26/04/2018,10258745,TC,134485901,8060930,134485901,PN,1846.8,12/04/2018
Capital Housing Revenue Account,Purchase of Council Houses,PUR00,Capital Contract Payments,5000,13400,HMRC Shipley,150936,26/04/2018,10259130,NT,,,,PN,13400,23/04/2018
Communities and Homes,CL Grants,CGS00,Grants To Voluntary Organisations,720,1323.99,Long Lawford Methodist Church,151019,19/04/2018,10258951,NT,,,,PN,1323.99,17/04/2018
Communities and Homes,CAST - Private Sector Leasing,CAS03,Private Sector Leasing Scheme Properties,148,2250,Personal Redacted Data,151047,12/04/2018,10258458,TC,,,,PN,2250,04/04/2018
Communities and Homes,ITC & Support Services,CIS10,Software Maintenance,374,3070,Fast Compliance Ltd,151049,19/04/2018,10258860,TC,765356405,,765356405,PN,3684,16/04/2018
Growth and Investment,Planning General/Income,PLN00,Consultancy Costs,740,2950,Dixon Searle Partnership Ltd,151060,05/04/2018,10258032,TC,241819312,10149678,241819312,PN,3540,22/03/2018
Housing Revenue Account,Unplanned Maintenance and Repair,UMR00,Materials,303,526.75,DCTUK T/A Discount Carpet Tiles,151067,26/04/2018,10258174,TC,903973512,6130667,903973512,PN,632.1,27/03/2018
Housing Revenue Account,Unplanned Maintenance and Repair,UMR00,Contract Hire,220,815,Aquam Water Services,151091,26/04/2018,10259207,TC,214042027,9527628,214042027,PN,978,25/04/2018
Communities and Homes,Central Telephone Service,TEL00,Maintenance of Equipment,301,4561.72,Exchange Communications,151167,26/04/2018,10258735,TC,208391707,SC499057,208391707,PI,5474.06,11/04/2018
Housing Revenue Account,Laundry equipment maintenance,UMR15,R&M External Contractors,100,1705,JLA Ltd,151207,26/04/2018,10259115,TC,566894869,1094178,566894869,PN,2046,23/04/2018
Communities and Homes,CAST - Private Sector Leasing,CAS03,Private Sector Leasing Scheme Properties,148,1350,Personal Redacted Data,151216,26/04/2018,10259035,TC,,,,PN,1350,19/04/2018
Communities and Homes,CAST - Private Sector Leasing,CAS03,Private Sector Leasing Scheme Properties,148,1500,Personal Redacted Data,151216,26/04/2018,10259149,TC,,,,PN,1500,24/04/2018
Housing Revenue Account,Multi-Storey Flats,MSF00,Other Miscellaneous Expenses,444,4960,Glancy Nicholls Architects Ltd,151225,12/04/2018,10256070,TC,846478287,5141809,846478287,PI,5952,26/01/2018
Growth and Investment,Art Gallery and Museum,AGM00,Childcare vouchers admin fee,7,9.72,Busy Bees Benefits Ltd,151230,12/04/2018,10258553,NT,,6758298,,PN,3455.54,06/04/2018
Corporate Resources,Council Tax and NNDR Collection,CTX01,Childcare vouchers admin fee,7,10.52,Busy Bees Benefits Ltd,151230,12/04/2018,10258553,NT,,6758298,,PN,3455.54,06/04/2018
Corporate Resources,Legal Services,DEM20,Childcare vouchers admin fee,7,9.09,Busy Bees Benefits Ltd,151230,12/04/2018,10258553,NT,,6758298,,PN,3455.54,06/04/2018
Growth and Investment,Economic Development General,ECD00,Childcare vouchers admin fee,7,0.8,Busy Bees Benefits Ltd,151230,12/04/2018,10258553,NT,,6758298,,PN,3455.54,06/04/2018
Communities and Homes,WTHEIP - Warwickshire Together Homelessness Early Intervention Project,HIP00,Childcare vouchers admin fee,7,9.72,Busy Bees Benefits Ltd,151230,12/04/2018,10258553,NT,,6758298,,PN,3455.54,06/04/2018
Growth and Investment,Sports and Recreation,LSD03,Childcare vouchers admin fee,7,8.4,Busy Bees Benefits Ltd,151230,12/04/2018,10258553,NT,,6758298,,PN,3455.54,06/04/2018
Housing Revenue Account,Estate Management,MAN22,Childcare vouchers admin fee,7,9.72,Busy Bees Benefits Ltd,151230,12/04/2018,10258553,NT,,6758298,,PN,3455.54,06/04/2018
Growth and Investment,Planning General/Income,PLN00,Childcare vouchers admin fee,7,13.12,Busy Bees Benefits Ltd,151230,12/04/2018,10258553,NT,,6758298,,PN,3455.54,06/04/2018
Environment and Public Realm,Domestic Waste Collection/Recycling,REF00,Childcare vouchers admin fee,7,10.72,Busy Bees Benefits Ltd,151230,12/04/2018,10258553,NT,,6758298,,PN,3455.54,06/04/2018
Environment and Public Realm,Regulatory Services,REG00,Childcare vouchers admin fee,7,22.64,Busy Bees Benefits Ltd,151230,12/04/2018,10258553,NT,,6758298,,PN,3455.54,06/04/2018
Corporate Resources,Financial Services,RES10,Childcare vouchers admin fee,7,21.44,Busy Bees Benefits Ltd,151230,12/04/2018,10258553,NT,,6758298,,PN,3455.54,06/04/2018
Corporate Resources,Human Resources,RES30,Childcare vouchers admin fee,7,1.2,Busy Bees Benefits Ltd,151230,12/04/2018,10258553,NT,,6758298,,PN,3455.54,06/04/2018
Growth and Investment,Visitor Centre,VSC00,Childcare vouchers admin fee,7,4.8,Busy Bees Benefits Ltd,151230,12/04/2018,10258553,NT,,6758298,,PN,3455.54,06/04/2018
Environment and Public Realm,Crematorium,CRM00,R&M External Contractors,100,501.58,Stage Services Ltd,151262,12/04/2018,10258588,TC,619920130,2981268,619920130,PN,601.9,09/04/2018
Communities and Homes,ITC & Support Services,CIS10,Consultancy Costs,740,7762.5,Firmstep,151293,19/04/2018,10258872,TC,,,,PI,9315,16/04/2018
Corporate Resources,General Financial Services,GFS00,Subscriptions,421,25000,West Midlands Combined Authority,151299,26/04/2018,10259100,TC,,,,PI,25000,23/04/2018
Capital Environment and Public Realm,Route Optimiser system,CMP35,IT Capital Expenditure,5025,117204.44,Bramble Hub Limited,151305,12/04/2018,10258284,TC,188679823,4136381,188679823,PI,140645.33,29/03/2018
Environment and Public Realm,Crime and Disorder Activities,CAD00,Development Activities,450,450,Buddi Ltd,151339,05/04/2018,10258460,TC,867696451,5308826,867696451,PN,540,04/04/2018
Corporate Resources,Corporate Property R&M,CPA01,New Equipment,300,5511.88,Outset Production Services Ltd,151499,26/04/2018,10257675,TC,,,,PI,5511.88,12/03/2018
Communities and Homes,Broadband & internet,TEL01,Telephone Expenses,371,666.66,HighSpeed Office Ltd,151543,12/04/2018,10258651,TC,766384980,3935705,766384980,PN,799.99,10/04/2018
Communities and Homes,ITC & Support Services,CIS10,Software Maintenance,374,2284,Trustco Plc,151576,12/04/2018,10258632,TC,704558241,3476994,704558241,PI,2740.8,09/04/2018
Communities and Homes,ITC & Support Services,CIS10,Hardware Maintenance,376,897,Trustco Plc,151576,12/04/2018,10258633,TC,704558241,3476994,704558241,PI,1076.4,09/04/2018
Growth and Investment,Planning General/Income,PLN00,Consultancy Costs,740,4338.93,Nigel Reeves Planning & Urban Design Ltd,151614,12/04/2018,10258577,TC,,,,PN,4338.93,09/04/2018
Growth and Investment,The Benn Hall,BHL00,Purchases for Resale,305,1608.5,Drays Wholesale Limited,151618,12/04/2018,10258649,TC,128586875,,128586875,PN,1930.2,09/04/2018
Growth and Investment,The Benn Hall,BHL00,Purchases for Resale,305,954.65,Drays Wholesale Limited,151618,26/04/2018,10258854,TC,128586875,,128586875,PN,1145.58,16/04/2018
Growth and Investment,The Benn Hall,BHL00,Purchases for Resale,305,2153.87,Drays Wholesale Limited,151618,26/04/2018,10259167,TC,128586875,,128586875,PN,2584.64,24/04/2018
Growth and Investment,Planning General/Income,PLN00,Subscriptions,421,2530,Haymarket Media Group Ltd,151637,12/04/2018,10258534,TC,232584272,267189,232584272,PN,2861,05/04/2018
Executive Director Office,"Communications, Consultation and Information Team",BTR20,Publicity & Marketing,377,466.55,4imprint Direct Ltd,151641,19/04/2018,10258747,TC,558440133,6392482,558440133,PN,559.86,12/04/2018
Environment and Public Realm,WSU Depot,WDP00,Personal Protective Clothing,340,568.37,SMI Group UK,151681,12/04/2018,10258119,TC,217124496,7644080,217124496,PN,682.04,26/03/2018
Communities and Homes,CAST - Private Sector Leasing,CAS03,Private Sector Leasing Scheme Properties,148,1649.95,Personal Redacted Data,151718,12/04/2018,10258664,TC,,,,PN,1649.95,10/04/2018
Communities and Homes,CAST - Private Sector Leasing,CAS03,Private Sector Leasing Scheme Properties,148,1649.95,Personal Redacted Data,151718,12/04/2018,10258665,TC,,,,PN,1649.95,10/04/2018
Communities and Homes,WTHEIP - Warwickshire Together Homelessness Early Intervention Project,HIP00,Payments to Other Local Authorities,710,2221.33,People Potential Possibilites T/A P3 Charity,151739,12/04/2018,10258605,TC,,2495423,,PI,2221.33,09/04/2018
Housing Revenue Account,Control Centre (HRA),CCE00,New Equipment,300,4594,Tunstall Healthcare,151791,26/04/2018,10259008,TC,182879709,1332249,182879709,PN,5512.8,18/04/2018
Housing Revenue Account,Control Centre (HRA),CCE00,New Equipment,300,11041,Tunstall Healthcare,151791,19/04/2018,10259009,TC,182879709,1332249,182879709,PN,13249.2,18/04/2018
Housing Revenue Account,Control Centre (HRA),CCE00,New Equipment,300,7037,Tunstall Healthcare,151791,19/04/2018,10259010,TC,182879709,1332249,182879709,PN,8444.4,18/04/2018
Housing Revenue Account,Repairs and Maintenance - Void works,UMR09,R&M External Contractors,100,1235,Kingdom Service Group,151795,12/04/2018,10258629,CS,582329526,2795197,582329526,PN,1482,09/04/2018
Growth and Investment,Hall of Fame,TRY00,Publicity & Marketing,377,1538,JCDecaux UK Ltd - Rail,151817,05/04/2018,10258453,TC,539090043,1679670,539090043,PI,1845.6,04/04/2018
Corporate Resources,Human Resources Centralised Services,RES31,Recruitment Expenses,12,750,Growth Hub Business Solutions,151836,12/04/2018,10258384,TC,66928359,10369498,66928359,PI,900,03/04/2018
Corporate Resources,Human Resources Centralised Services,RES31,Recruitment Expenses,12,825,Growth Hub Business Solutions,151836,26/04/2018,10258699,TC,66928359,10369498,66928359,PI,990,11/04/2018
Capital Communities and Homes,ICT Renewal Programme,CMP00,IT Capital Expenditure,5025,3229.2,PCM Technology Solutions Ltd,151837,12/04/2018,10258694,TC,264198089,103216566,264198089,PI,3875.04,11/04/2018
Communities and Homes,ITC & Support Services,CIS10,New Equipment,300,496.79,PCM Technology Solutions Ltd,151837,19/04/2018,10258876,TC,264198089,103216566,264198089,PI,596.15,16/04/2018
Communities and Homes,ITC & Support Services,CIS10,New Equipment,300,1990.47,PCM Technology Solutions Ltd,151837,19/04/2018,10258877,TC,264198089,103216566,264198089,PI,2388.56,16/04/2018
Growth and Investment,Planning General/Income,PLN00,Consultancy Costs,740,10976.75,Troy Hayes Planning Ltd,151845,05/04/2018,10258319,TC,163258801,8533500,163258801,PN,13172.1,29/03/2018
Capital Housing Revenue Account,Housing Management System,HCE08,IT Capital Expenditure,5025,3150,Gravitas Recruitment Group,151921,05/04/2018,10258263,TC,974844372,6959984,974844372,PN,3780,28/03/2018
Capital Housing Revenue Account,Housing Management System,HCE08,IT Capital Expenditure,5025,2520,Gravitas Recruitment Group,151921,19/04/2018,10258902,TC,974844372,6959984,974844372,PN,3024,16/04/2018
Capital Housing Revenue Account,Housing Management System,HCE08,IT Capital Expenditure,5025,1890,Gravitas Recruitment Group,151921,26/04/2018,10259173,TC,974844372,6959984,974844372,PN,2268,24/04/2018
Housing Revenue Account,Multi-Storey Flats,MSF00,Other Miscellaneous Expenses,444,3530,Lawrence Webster Forrest Ltd,151950,12/04/2018,10258624,TC,805169730,2092456,805169730,PN,4236,09/04/2018
Communities and Homes,CAST - Private Sector Leasing,CAS03,Private Sector Leasing Scheme Properties,148,6300,Dreambuilder Financial Ltd,151961,12/04/2018,10258715,NT,,,,PN,6300,11/04/2018
Communities and Homes,CAST - Private Sector Leasing,CAS03,Private Sector Leasing Scheme Properties,148,1800,Personal Redacted Data,151978,19/04/2018,10258959,NT,,,,PN,1800,17/04/2018
Environment and Public Realm,Street Cleansing General,STC00,Materials,303,637.5,Hammonds Hygiene Solutions Ltd,152004,19/04/2018,10258698,TC,770138146,6143231,770138146,PI,765,11/04/2018
Communities and Homes,WTHEIP - Warwickshire Together Homelessness Early Intervention Project,HIP00,Training fees,11,1000,Ignition Creative Learning Ltd,152005,19/04/2018,10258552,TC,811535359,5103969,811535359,PN,1200,06/04/2018
Communities and Homes,CAST - Bed & Breakfast,CAS01,Rents - Outside Scope,1603,2020.41,Personal Redacted Data,152039,12/04/2018,10258468,NT,,,,PN,2020.41,04/04/2018
Growth and Investment,Play Projects (revenue),LSD09,Development Activities,450,653,RedKangaroo Ltd,152041,05/04/2018,10258474,TC,246250323,10214431,246250323,PN,653,04/04/2018
Growth and Investment,Art Gallery and Museum,AGM00,Other Miscellaneous Expenses,444,1500,Personal Redacted Data,152042,05/04/2018,10258479,TC,,,,PN,1500,04/04/2018
Growth and Investment,AGM Exhibitions/Outreach,AGM02,Other Miscellaneous Expenses,444,540,Personal Redacted Data,152051,12/04/2018,10258691,NT,,,,PN,540,11/04/2018
Growth and Investment,Visitor Centre,VSC00,Purchases for Resale,305,784.88,The Lowry Centre Ltd,152054,26/04/2018,10259101,TC,247711696,3255905,247711696,PI,905.88,23/04/2018
Growth and Investment,The Benn Hall,BHL00,Events Tickets - Zero Rated,1405,1824.48,Legacy Wrestling,152055,23/04/2018,10258836,TC,,,,PN,1824.48,16/04/2018
Communities and Homes,CAST - Private Sector Leasing,CAS03,Private Sector Leasing Scheme Properties,148,2175,Personal Redacted Data,152057,19/04/2018,10258948,NT,,,,PN,2175,17/04/2018
Growth and Investment,Visitor Centre,VSC00,Publicity & Marketing,377,1080,Exhibit 3sixty ltd,152058,19/04/2018,10258904,TC,936965568,6668833,936965568,PN,1296,16/04/2018
Communities and Homes,CAST - Private Sector Leasing,CAS03,Private Sector Leasing Scheme Properties,148,2025,Personal Redacted Data,152060,19/04/2018,10258956,NT,,,,PN,2025,17/04/2018
Growth and Investment,AGM Exhibitions/Outreach,AGM02,Other Miscellaneous Expenses,444,750,Impressions gallery of Photography Ltd,152066,26/04/2018,10259156,TC,927228710,1161029,927228710,PN,900,24/04/2018
Growth and Investment,About Face Exhibition,AGM08,Other Miscellaneous Expenses,444,1753,Momart Ltd,152067,26/04/2018,10259176,TC,697251302,1073437,697251302,PN,2103.6,24/04/2018
Communities and Homes,CAST - Bed & Breakfast,CAS01,Bed and Breakfast Temporary Accommodation,146,460.83,Carlton Hotel,,17/04/2018,45969,,,,,,,
Communities and Homes,CAST - Bed & Breakfast,CAS01,Bed and Breakfast Temporary Accommodation,146,525,The Allesley Hotel ,,17/04/2018,45969,,,,,,,
Communities and Homes,Community Advice & Support Team,CAS00,Homelessness Severe Weather Accommodation,152,525,The Allesley Hotel,,17/04/2018,45969,,,,,,,
Housing Revenue Account,Supervision and Management General,MAN00,External Legal Costs,741,545,HMCTS,,17/04/2018,45969,,,,,,,
Communities and Homes,CAST - Bed & Breakfast,CAS01,Bed and Breakfast Temporary Accommodation,146,550,The Allesley Hotel ,,17/04/2018,45969,,,,,,,
Communities and Homes,CAST - Bed & Breakfast,CAS01,Bed and Breakfast Temporary Accommodation,146,576,Carlton Hotel,,17/04/2018,45969,,,,,,,
Environment and Public Realm,Domestic Waste Collection/Recycling,REF00,Vehicle Running Costs,201,652.5,DVLA,,17/04/2018,45969,,,,,,,
Communities and Homes,CAST - Bed & Breakfast,CAS01,Bed and Breakfast Temporary Accommodation,146,770,The Allesley Hotel ,,17/04/2018,45969,,,,,,,
Environment and Public Realm,Cemeteries General,CEM00,Special Events/Activities,447,809.29,There But Not There,,17/04/2018,45969,,,,,,,
Communities and Homes,CAST - Bed & Breakfast,CAS01,Bed and Breakfast Temporary Accommodation,146,825,The Allesley Hotel ,,17/04/2018,45969,,,,,,,
Housing Revenue Account,Unplanned Maintenance and Repair,UMR00,Materials,303,1198.8,The Key Safe Company,,17/04/2018,45969,,,,,,,
Communities and Homes,Housing Options,HOT00,Bed & Breakfast,146,10650.55,Travelodge,,16/04/2018,46027,,,,,,,
Communities and Homes,CAST - Private Sector Leasing,CAS03,Private Sector Leasing Scheme Properties,148,2400,Personal Redacted Data,,03/04/2018,45576,,,,,,,
Housing Revenue Account,Homelessness Prevention,CAS06,Other Miscellaneous Expenses,444,1350,Belvoir Lettings,,12/04/2018,45813,,,,,,,
Outside portfolio expenditure,User Balance Sheet Cost Centre,BSU,Collection Fund,9476,1149042,Cov & Warks Pooling,,27/04/2018,45938,,,,,,,
Outside portfolio expenditure,User Balance Sheet Cost Centre,BSU,Collection Fund,9476,434396,WCC County Fund,,30/04/2018,45963,,,,,,,
Outside portfolio expenditure,User Balance Sheet Cost Centre,BSU,Collection Fund,9476,2274336,DCLG,,30/04/2018,45961,,,,,,,
Communities and Homes,ITC & Support Services,CIS21,Software Maintenance,374,635.68,Bottomline Technologies,,20/04/2018,45892,,,,,,,
Communities and Homes,Housing Benefit Payments,HBP00,Discretionary Housing Payment,765,1721.87,Personal Redacted Data,,20/04/2018,45896,,,,,,,
Corporate Resources,General Financial Services,GFS00,Payment Card Costs,445,4271.51,Capita,,25/04/2018,45921,,,,,,,
Outside portfolio expenditure,User Balance Sheet Cost Centre,BSU,Capital Receipts,9820,123179.04,DCLG,,30/04/2018,45962,,,,,,,
